fUSD/lending_fUSD_20250623
["ID","MTS","AMOUNT","RATE_DAILY","PERIOD"]
[367120135,1750662778214,-1615.12,0.00032054,3]
[367120136,1750662778225,-852.31,0.00032054,3]
[367120137,1750662778235,-1617.57,0.00032054,3]
[367120138,1750662778245,-1344.16,0.00032054,3]
[367120139,1750662778254,-1189.28,0.00032054,3]
[367120140,1750662778264,-924.24,0.00032054,3]
[367120141,1750662778274,-1017.87,0.00032054,3]
[367120142,1750662778284,-1327.65,0.00032054,3]
[367120143,1750662778294,-816.97,0.00032054,3]
[367120144,1750662778305,-1505.21,0.00032054,3]
[367120145,1750662778315,-490.0,0.00032054,3]
[367120146,1750662778325,-1444.07,0.00032054,3]
[367120147,1750662778335,-490.0,0.00032054,3]
[367120148,1750662778345,-995.43,0.00032054,3]
[367120149,1750662778354,-3010.94,0.00032054,2]
[367120150,1750662778364,-1097.45,0.00032054,3]
[367120151,1750662778374,-490.0,0.00032054,3]
[367120152,1750662778384,-753.53,0.00032054,3]
[367120153,1750662778394,-1037.06,0.00032054,3]
[367120154,1750662778404,-1995.53,0.00032054,3]
[367120155,1750662778414,-490.0,0.00032054,3]
[367120156,1750662778424,-660.48,0.00032054,3]
[367120157,1750662778434,-752.2,0.00032054,3]
[367120158,1750662778444,-1341.44,0.00032054,3]
[367120159,1750662778454,-850.05,0.00032054,3]
[367120160,1750662778464,-581.79,0.00032054,3]
[367120161,1750662778474,-2153.23,0.00032054,3]
[367120162,1750662778484,-557.61,0.00032054,3]
[367120163,1750662778495,-507.29,0.00032054,3]
[367120164,1750662778504,-572.59,0.00032054,3]
[367120165,1750662778515,-2413.05,0.00032054,3]
[367120166,1750662778524,-1348.78,0.00032054,3]
[367120167,1750662778536,-2316.4,0.00032054,3]
[367120168,1750662778547,-566.43,0.00032054,3]
[367120169,1750662778556,-1609.27,0.00032054,3]
[367120170,1750662778566,-490.0,0.00032054,3]
[367120171,1750662778576,-569.99,0.00032054,3]
[367120172,1750662778588,-490.0,0.00032054,3]
[367120173,1750662778598,-490.0,0.00032054,3]
[367120174,1750662778609,-328.29004248,0.00032054,3]
[367120175,1750662778619,-2663.87,0.00032054,3]
[367120176,1750662778628,-731.27,0.00032054,3]
[367120177,1750662778638,-861.6,0.00032054,3]
[367120178,1750662778648,-560.0,0.00032054,3]
[367120179,1750662778659,-1117.5,0.00032054,3]
[367120180,1750662778670,-921.04,0.00032054,3]
[367120181,1750662778679,-783.55,0.00032054,3]
[367120182,1750662778689,-600.11,0.00032054,3]
[367120183,1750662778699,-1052.0,0.00032054,3]
[367120184,1750662778708,-490.0,0.00032054,3]
[367120185,1750662778718,-785.27,0.00032054,3]
[367120186,1750662778728,-595.61,0.00032054,3]
[367120187,1750662778738,-950.58,0.00032054,3]
[367120188,1750662778747,-1688.41,0.00032054,3]
[367120189,1750662778757,-1953.41,0.00032054,3]
[367120190,1750662778767,-523.44,0.00032054,3]
[367120191,1750662778777,-1726.17,0.00032054,3]
[367120192,1750662778787,-1456.32,0.00032054,3]
[367120193,1750662778797,-1698.32,0.00032054,3]
[367120194,1750662778808,-603.07,0.00032054,3]
[367120195,1750662778818,-355.94013059,0.00032054,3]
[367120196,1750662778828,-1007.06,0.00032054,3]
[367120197,1750662778838,-1681.01,0.00032054,3]
[367120198,1750662778847,-1708.4,0.00032054,3]
[367120199,1750662778857,-873.29,0.00032054,3]
[367120200,1750662778866,-1098.59,0.00032054,3]
[367120201,1750662778877,-1944.53,0.00032054,3]
[367120202,1750662778887,-490.0,0.00032054,3]
[367120203,1750662778897,-2433.81,0.00032054,3]
[367120204,1750662778907,-577.0,0.00032054,3]
[367120205,1750662778916,-750.42,0.00032054,3]
[367120206,1750662778926,-501.38,0.00032054,3]
[367120207,1750662778935,-662.45,0.00032054,3]
[367120208,1750662778944,-1247.14,0.00032054,3]
[367120209,1750662778953,-1551.77,0.00032054,3]
[367120210,1750662778963,-1650.44,0.00032054,3]
[367120211,1750662778973,-529.91,0.00032054,3]
[367120212,1750662778983,-490.0,0.00032054,3]
[367120213,1750662778992,-703.59,0.00032054,3]
[367120214,1750662779002,-788.62,0.00032054,3]
[367120215,1750662779013,-912.47,0.00032054,3]
[367120216,1750662779022,-1251.29,0.00032054,3]
[367120217,1750662779031,-655.66,0.00032054,3]
[367120218,1750662779041,-675.57,0.00032054,3]
[367120219,1750662779050,-1664.2,0.00032054,3]
[367120220,1750662779060,-1679.9,0.00032054,3]
[367120221,1750662779069,-1433.27,0.00032054,3]
[367120222,1750662779079,-1066.4,0.00032054,3]
[367120223,1750662779090,-490.0,0.00032054,3]
[367120224,1750662779099,-572.95,0.00032054,3]
[367120225,1750662779108,-490.0,0.00032054,3]
[367120226,1750662779118,-1605.51,0.00032054,3]
[367120227,1750662779128,-1690.95,0.00032054,3]
[367120228,1750662779138,-490.0,0.00032054,3]
[367120229,1750662779149,-490.0,0.00032054,3]
[367120230,1750662779159,-1674.28,0.00032054,3]
[367120231,1750662779169,-638.77,0.00032054,3]
[367120232,1750662779178,-1574.11,0.00032054,3]
[367120233,1750662779188,-378.81,0.00032054,3]
[367120234,1750662779198,-684.38,0.00032054,3]
[367120235,1750662779208,-1278.36,0.00032054,3]
[367120236,1750662779218,-905.6,0.00032054,3]
[367120237,1750662779228,-1682.39,0.00032054,3]
[367120238,1750662779238,-1126.22,0.00032054,3]
[367120239,1750662779248,-1883.69,0.00032054,3]
[367120240,1750662779259,-7415.21,0.00032054,3]
[367120241,1750662779268,-1410.38,0.00032054,3]
[367120242,1750662779278,-2332.56,0.00032054,3]
[367120243,1750662779288,-1449.04,0.00032054,3]
[367120244,1750662779298,-849.69,0.00032054,3]
[367120245,1750662779307,-883.32,0.00032054,3]
[367120246,1750662779318,-901.3,0.00032054,3]
[367120247,1750662779327,-587.88,0.00032054,3]
[367120248,1750662779338,-1248.93,0.00032054,3]
[367120249,1750662779441,-1164.04,0.00032054,3]
[367120250,1750662779451,-1753.14,0.00032054,3]
[367120251,1750662779460,-10399.38,0.00032054,3]
[367120252,1750662779469,-4073.96,0.00032054,3]
[367120253,1750662779479,-580.67,0.00032054,3]
[367120254,1750662779488,-836.73,0.00032054,3]
[367120255,1750662779498,-1448.46,0.00032054,3]
[367120256,1750662779507,-918.93,0.00032054,3]
[367120257,1750662779517,-1355.08,0.00032054,3]
[367120258,1750662779526,-526.35,0.00032054,3]
[367120259,1750662779537,-6824.52,0.00032054,3]
[367120260,1750662779546,-1900.51,0.00032054,3]
[367120261,1750662779556,-1016.76,0.00032054,3]
[367120262,1750662779565,-3401.6,0.00032054,3]
[367120263,1750662779574,-3966.47,0.00032054,3]
[367120264,1750662779584,-490.0,0.00032054,3]
[367120265,1750662779594,-490.0,0.00032054,3]
[367120266,1750662779603,-909.73,0.00032054,3]
[367120267,1750662779612,-934.07,0.00032054,3]
[367120268,1750662779622,-4949.36,0.00032054,3]
[367120269,1750662779631,-242.29,0.00032054,3]
[367120270,1750662779640,-2915.88,0.00032054,3]
[367120271,1750662779649,-1741.72,0.00032054,3]
[367120272,1750662779658,-1585.93,0.00032054,3]
[367120273,1750662779667,-490.0,0.00032054,3]
[367120274,1750662779676,-490.0,0.00032054,3]
[367120275,1750662779686,-608.52,0.00032054,3]
[367120276,1750662779698,-18062.45,0.00032054,3]
[367120277,1750662779707,-3468.99,0.00032054,3]
[367120278,1750662779716,-1570.58,0.00032054,3]
[367120279,1750662779725,-1672.97,0.00032054,3]
[367120280,1750662779735,-789.6,0.00032054,3]
[367120281,1750662779745,-798.22,0.00032054,3]
[367120282,1750662779755,-1533.06,0.00032054,3]
[367120283,1750662779764,-1681.4,0.00032054,3]
[367120284,1750662779774,-814.19,0.00032054,3]
[367120285,1750662779784,-528.64,0.00032054,3]
[367120286,1750662779793,-1980.76,0.00032054,3]
[367120287,1750662779802,-1108.02,0.00032054,3]
[367120288,1750662779812,-2594.4,0.00032054,3]
[367120289,1750662779821,-490.0,0.00032054,3]
[367120290,1750662779830,-1623.55,0.00032054,3]
[367120291,1750662779840,-490.0,0.00032054,3]
[367120292,1750662779849,-891.21,0.00032054,3]
[367120293,1750662779858,-1019.18,0.00032054,3]
[367120294,1750662779867,-1174.99,0.00032054,3]
[367120295,1750662779876,-3127.29,0.00032054,3]
[367120296,1750662779885,-1569.21,0.00032054,3]
[367120297,1750662779895,-1940.59,0.00032054,3]
[367120298,1750662779904,-664.92,0.00032054,3]
[367120299,1750662779913,-2329.34,0.00032054,3]
[367120300,1750662779923,-1830.85,0.00032054,3]
[367120301,1750662779932,-1700.21,0.00032054,3]
[367120302,1750662779942,-2769.81,0.00032054,3]
[367120303,1750662779951,-6713.02,0.00032054,3]
[367120304,1750662779960,-777.56,0.00032054,3]
[367120305,1750662779970,-744.42,0.00032054,3]
[367120306,1750662779979,-2394.73,0.00032054,3]
[367120307,1750662779989,-826.09,0.00032054,3]
[367120308,1750662779999,-1294.78,0.00032054,3]
[367120309,1750662780008,-490.0,0.00032054,3]
[367120310,1750662780018,-760.04,0.00032054,3]
[367120311,1750662780027,-1749.09,0.00032054,3]
[367120312,1750662780037,-490.0,0.00032054,3]
[367120313,1750662780047,-555.71,0.00032054,3]
[367120314,1750662780057,-1626.24,0.00032054,3]
[367120315,1750662780067,-4056.64,0.00032054,3]
[367120316,1750662780077,-490.0,0.00032054,3]
[367120317,1750662780087,-1498.64,0.00032054,3]
[367120318,1750662780098,-1457.21,0.00032054,3]
[367120319,1750662780108,-490.0,0.00032054,3]
[367120320,1750662780121,-737.54,0.00032054,3]
[367120321,1750662780131,-1307.83,0.00032054,3]
[367120322,1750662780140,-728.06,0.00032054,3]
[367120323,1750662780151,-1832.35,0.00032054,3]
[367120324,1750662780161,-490.0,0.00032054,3]
[367120325,1750662780172,-1380.67,0.00032054,3]
[367120326,1750662780181,-2228.14,0.00032054,3]
[367120327,1750662780191,-2372.02,0.00032054,3]
[367120328,1750662780201,-3318.96,0.00032054,3]
[367120329,1750662780211,-709.01,0.00032054,3]
[367120330,1750662780222,-862.45,0.00032054,3]
[367120331,1750662780232,-788.8,0.00032054,3]
[367120332,1750662780241,-1200.13,0.00032054,3]
[367120333,1750662780251,-1916.86,0.00032054,3]
[367120334,1750662780261,-678.77,0.00032054,3]
[367120335,1750662780270,-4654.08,0.00032054,3]
[367120336,1750662780279,-1366.52,0.00032054,3]
[367120337,1750662780289,-788.62,0.00032054,3]
[367120338,1750662780299,-515.04,0.00032054,3]
[367120339,1750662780309,-553.78,0.00032054,3]
[367120340,1750662780318,-1107.26,0.00032054,3]
[367120341,1750662780328,-498.97,0.00032054,3]
[367120342,1750662780337,-7394.17,0.00032054,3]
[367120343,1750662780347,-1624.99,0.00032054,3]
[367120344,1750662780358,-1578.33,0.00032054,3]
[367120345,1750662780367,-183.94010823,0.00032054,3]
[367120346,1750662780377,-2834.49,0.00032054,3]
[367120347,1750662780386,-1036.64,0.00032054,3]
[367120348,1750662780396,-12536.04,0.00032054,3]
[367120349,1750662780405,-3543.99,0.00032054,3]
[367120350,1750662780414,-1768.62,0.00032054,3]
[367120351,1750662780426,-497.45,0.00032054,3]
[367120352,1750662780436,-1619.96,0.00032054,3]
[367120353,1750662780446,-510.41,0.00032054,3]
[367120354,1750662780455,-5190.35,0.00032054,3]
[367120355,1750662780466,-9852.89,0.00032054,3]
[367120356,1750662780476,-490.0,0.00032054,3]
[367120357,1750662780485,-1552.44,0.00032054,3]
[367120358,1750662780495,-814.87,0.00032054,3]
[367120359,1750662780505,-1947.91,0.00032054,3]
[367120360,1750662780514,-2783.14,0.00032054,3]
[367120361,1750662780524,-510.26,0.00032054,3]
[367120362,1750662780536,-1717.08,0.00032054,3]
[367120363,1750662780546,-1630.26,0.00032054,3]
[367120364,1750662780555,-2330.84,0.00032054,3]
[367120365,1750662780565,-752.02,0.00032054,3]
[367120366,1750662780575,-1618.67,0.00032054,3]
[367120367,1750662780586,-490.0,0.00032054,3]
[367120368,1750662780596,-1776.65,0.00032054,3]
[367120369,1750662780606,-915.84,0.00032054,3]
[367120370,1750662780617,-1151.97,0.00032054,3]
[367120371,1750662780628,-670.37,0.00032054,3]
[367120372,1750662780638,-3986.65,0.00032054,3]
[367120373,1750662780648,-1591.01,0.00032054,3]
[367120374,1750662780658,-6065.53,0.00032054,3]
[367120375,1750662780669,-1642.63,0.00032054,3]
[367120376,1750662780679,-1605.38,0.00032054,3]
[367120377,1750662780689,-1960.82,0.00032054,3]
[367120378,1750662780698,-798.12,0.00032054,3]
[367120379,1750662780707,-1292.66,0.00032054,3]
[367120380,1750662780717,-2292.5,0.00032054,3]
[367120381,1750662780727,-2903.63,0.00032054,3]
[367120382,1750662780736,-1562.1,0.00032054,3]
[367120383,1750662780745,-4219.23,0.00032054,3]
[367120384,1750662780754,-765.43,0.00032054,3]
[367120385,1750662780763,-1872.32,0.00032054,3]
[367120386,1750662780773,-3240.53,0.00032054,3]
[367120387,1750662780783,-492.32,0.00032054,3]
[367120388,1750662780792,-1499.13,0.00032054,3]
[367120389,1750662780802,-1684.89,0.00032054,3]
[367120390,1750662780812,-1822.31,0.00032054,3]
[367120391,1750662780821,-2262.37,0.00032054,3]
[367120392,1750662780831,-274.11557743,0.00032054,3]
[367120393,1750662780840,-745.32,0.00032054,3]
[367120394,1750662780850,-1565.33,0.00032054,3]
[367120395,1750662780860,-1599.78,0.00032054,3]
[367120396,1750662780869,-3248.59,0.00032054,3]
[367120397,1750662780879,-795.18,0.00032054,3]
[367120398,1750662780889,-638.67,0.00032054,3]
[367120399,1750662780899,-8785.1,0.00032054,3]
[367120400,1750662780909,-849.6,0.00032054,3]
[367120401,1750662780918,-1787.94,0.00032054,3]
[367120402,1750662780930,-1444.68,0.00032054,3]
[367120403,1750662780939,-1335.88,0.00032054,3]
[367120404,1750662780949,-948.02,0.00032054,3]
[367120405,1750662780959,-490.0,0.00032054,3]
[367120406,1750662780969,-1583.66,0.00032054,3]
[367120407,1750662780979,-507.9,0.00032054,3]
[367120408,1750662780988,-3963.91,0.00032054,3]
[367120409,1750662780998,-1578.99,0.00032054,3]
[367120410,1750662781007,-1445.82,0.00032054,3]
[367120411,1750662781017,-1285.59,0.00032054,3]
[367120412,1750662781026,-490.0,0.00032054,3]
[367120413,1750662781036,-728.45,0.00032054,3]
[367120414,1750662781045,-806.96,0.00032054,3]
[367120415,1750662781055,-1797.81,0.00032054,3]
[367120416,1750662781064,-1831.64,0.00032054,3]
[367120417,1750662781073,-1432.05,0.00032054,3]
[367120418,1750662781082,-919.07,0.00032054,3]
[367120419,1750662781092,-490.0,0.00032054,3]
[367120420,1750662781102,-14900.62,0.00032054,3]
[367120421,1750662781111,-1833.67,0.00032054,3]
[367120422,1750662781120,-2078.39,0.00032054,3]
[367120423,1750662781130,-510.45,0.00032054,3]
[367120424,1750662781139,-4833.93,0.00032054,3]
[367120425,1750662781149,-1601.31,0.00032054,3]
[367120426,1750662781158,-759.06,0.00032054,3]
[367120427,1750662781167,-873.41,0.00032054,3]
[367120428,1750662781177,-4669.42,0.00032054,3]
[367120429,1750662781187,-791.68,0.00032054,3]
[367120430,1750662781197,-1693.53,0.00032054,3]
[367120431,1750662781207,-990.18,0.00032054,3]
[367120432,1750662781216,-1034.99,0.00032054,3]
[367120433,1750662781225,-1620.6,0.00032054,3]
[367120434,1750662781235,-1653.45,0.00032054,3]
[367120435,1750662781245,-1389.7,0.00032054,3]
[367120436,1750662781254,-3451.15,0.00032054,3]
[367120437,1750662781264,-2416.24,0.00032054,3]
[367120438,1750662781274,-993.54,0.00032054,3]
[367120439,1750662781284,-11090.94,0.00032054,3]
[367120440,1750662781293,-1799.28,0.00032054,3]
[367120441,1750662781303,-1701.67,0.00032054,3]
[367120442,1750662781312,-2070.18,0.00032054,3]
[367120443,1750662781322,-1221.42,0.00032054,3]
[367120444,1750662781332,-1378.47,0.00032054,3]
[367120445,1750662781341,-1736.17,0.00032054,3]
[367120446,1750662781351,-1087.15,0.00032054,3]
[367120447,1750662781360,-1816.97,0.00032054,3]
[367120448,1750662781370,-1834.95,0.00032054,3]
[367120449,1750662781380,-709.09,0.00032054,3]
[367120450,1750662781390,-1672.0,0.00032054,3]
[367120451,1750662781399,-1571.12,0.00032054,3]
[367120452,1750662781409,-1351.61,0.00032054,3]
[367120453,1750662781419,-490.0,0.00032054,3]
[367120454,1750662781430,-4884.01,0.00032054,3]
[367120455,1750662781439,-1729.07,0.00032054,3]
[367120456,1750662781448,-8073.75,0.00032054,3]
[367120457,1750662781458,-1652.26,0.00032054,3]
[367120458,1750662781467,-867.32,0.00032054,3]
[367120459,1750662781477,-30050.84,0.00032054,3]
[367120460,1750662781487,-1482.76,0.00032054,3]
[367120461,1750662781497,-1513.2,0.00032054,3]
[367120462,1750662781507,-1869.9,0.00032054,3]
[367120463,1750662781517,-825.47,0.00032054,3]
[367120464,1750662781527,-1291.21,0.00032054,3]
[367120465,1750662781539,-261.8606738,0.00032054,3]
[367120466,1750662781549,-718.8,0.00032054,3]
[367120467,1750662781559,-529.57,0.00032054,3]
[367120468,1750662781569,-1000.93,0.00032054,3]
[367120469,1750662781578,-1013.98,0.00032054,2]
[367120470,1750662781587,-749.71,0.00032054,3]
[367120471,1750662781597,-2626.45,0.00032054,3]
[367120472,1750662781606,-1301.95,0.00032054,3]
[367120473,1750662781616,-914.97,0.00032054,3]
[367120474,1750662781626,-5331.91,0.00032054,3]
[367120475,1750662781636,-6188.74,0.00032054,3]
[367120476,1750662781646,-2204.74,0.00032054,3]
[367120477,1750662781655,-733.17,0.00032054,3]
[367120478,1750662781665,-742.07,0.00032054,3]
[367120479,1750662781675,-1553.91,0.00032054,3]
[367120480,1750662781685,-1201.89,0.00032054,3]
[367120481,1750662781694,-716.87,0.00032054,3]
[367120482,1750662781703,-866.05,0.00032054,3]
[367120483,1750662781713,-490.0,0.00032054,3]
[367120484,1750662781722,-5637.09,0.00032054,3]
[367120485,1750662781731,-2465.19,0.00032054,3]
[367120486,1750662781741,-1651.87,0.00032054,3]
[367120487,1750662781751,-1607.85,0.00032054,3]
[367120488,1750662781761,-572.05,0.00032054,3]
[367120489,1750662781770,-1536.26,0.00032054,3]
[367120490,1750662781780,-1906.99,0.00032054,3]
[367120491,1750662781790,-1920.56,0.00032054,3]
[367120492,1750662781800,-764.72,0.00032054,3]
[367120493,1750662781809,-1131.73,0.00032054,3]
[367120494,1750662781819,-2965.58,0.00032054,3]
[367120495,1750662781829,-594.04,0.00032054,3]
[367120496,1750662781839,-391.55,0.00032117,120]
[367120497,1750662781849,-207.0,0.0003213,30]
[367120498,1750662781859,-151.3,0.00032152,4]
[367120499,1750662781868,-625.0,0.00032166,3]
[367120500,1750662781878,-625.0,0.00032166,3]
[367120501,1750662781887,-5455.753665,0.00032328,3]
[367120502,1750662781897,-151.476984,0.00032328,3]
[367120503,1750662781907,-906.91,0.00032328,3]
[367120504,1750662781917,-367.78799901,0.00032328,3]
[367120505,1750662781927,-765.27,0.00032328,3]
[367120506,1750662781937,-490.0,0.00032328,3]
[367120507,1750662781946,-516.44749284,0.00032328,3]
[367120508,1750662781957,-252.921479,0.00032328,3]
[367120509,1750662781966,-958.78,0.00032328,3]
[367120510,1750662781976,-972.11,0.00032328,3]
[367120511,1750662781985,-548.4,0.00032328,3]
[367120512,1750662781995,-548.42,0.00032328,3]
[367120513,1750662782004,-2591.829598,0.00032328,3]
[367120514,1750662782016,-615.11,0.00032328,3]
[367120515,1750662782027,-804.23,0.00032328,3]
[367120516,1750662782036,-1075.31,0.00032328,3]
[367120517,1750662782046,-692.3,0.00032328,3]
[367120518,1750662782055,-811.41,0.00032328,3]
[367120519,1750662782065,-490.0,0.00032328,3]
[367120520,1750662782075,-695.49,0.00032328,3]
[367120521,1750662782086,-490.0,0.00032328,3]
[367120522,1750662782096,-977.66,0.00032328,3]
[367120523,1750662782106,-833.21,0.00032328,3]
[367120524,1750662782117,-591.25,0.00032328,3]
[367120525,1750662782128,-690.16,0.00032328,3]
[367120526,1750662782138,-1109.36,0.00032328,3]
[367120527,1750662782150,-490.0,0.00032328,3]
[367120528,1750662782161,-526.92,0.00032328,3]
[367120529,1750662782171,-519.11,0.00032328,3]
[367120530,1750662782182,-490.0,0.00032328,3]
[367120531,1750662782192,-970.12,0.00032328,3]
[367120532,1750662782202,-1478.36,0.00032328,3]
[367120533,1750662782212,-1376.6,0.00032328,3]
[367120534,1750662782223,-889.62,0.00032328,3]
[367120535,1750662782234,-1155.19,0.00032328,3]
[367120536,1750662782244,-490.0,0.00032328,3]
[367120537,1750662782254,-495.01,0.00032328,3]
[367120538,1750662782264,-668.52,0.00032328,3]
[367120539,1750662782274,-611.64,0.00032328,3]
[367120540,1750662782284,-698.01,0.00032328,3]
[367120541,1750662782294,-644.39,0.00032328,3]
[367120542,1750662782305,-617.7,0.00032328,3]
[367120543,1750662782316,-826.8,0.00032328,3]
[367120544,1750662782326,-490.0,0.00032328,3]
[367120545,1750662782335,-490.0,0.00032328,3]
[367120546,1750662782345,-626.46,0.00032328,3]
[367120547,1750662782355,-841.55,0.00032328,3]
[367120548,1750662782365,-625.27,0.00032328,3]
[367120549,1750662782375,-1584.78,0.00032328,3]
[367120550,1750662782385,-490.0,0.00032328,3]
[367120551,1750662782395,-490.0,0.00032328,3]
[367120552,1750662782405,-1089.25,0.00032328,3]
[367120553,1750662782415,-914.26,0.00032328,3]
[367120554,1750662782425,-777.39,0.00032328,3]
[367120555,1750662782435,-667.3,0.00032328,3]
[367120556,1750662782445,-1172.55,0.00032328,3]
[367120557,1750662782454,-857.69,0.00032328,3]
[367120558,1750662782464,-601.26,0.00032328,3]
[367120559,1750662782474,-654.18,0.00032328,3]
[367120560,1750662782484,-1486.14,0.00032328,3]
[367120561,1750662782494,-563.6,0.00032328,3]
[367120562,1750662782504,-641.56,0.00032328,3]
[367120563,1750662782514,-2328.1,0.00032328,3]
[367120564,1750662782523,-490.0,0.00032328,3]
[367120565,1750662782537,-2984.61,0.00032328,3]
[367120566,1750662782548,-834.55,0.00032328,3]
[367120567,1750662782558,-1714.75,0.00032328,3]
[367120568,1750662782568,-1666.5,0.00032328,3]
[367120569,1750662782579,-579.07,0.00032328,3]
[367120570,1750662782589,-774.87,0.00032328,3]
[367120571,1750662782599,-523.64,0.00032328,3]
[367120572,1750662782610,-1685.1,0.00032328,3]
[367120573,1750662782621,-198.016965,0.00032328,3]
[367120574,1750662782634,-685.83,0.00032328,3]
[367120575,1750662782645,-845.32,0.00032328,3]
[367120576,1750662782655,-1003.013708,0.00032328,3]
[367120577,1750662782666,-407.03,0.00032328,3]
[367120578,1750662782676,-247.33241848,0.00032328,3]
[367120579,1750662782686,-490.0,0.00032328,3]
[367120580,1750662782697,-620.28,0.00032328,3]
[367120581,1750662782707,-692.18,0.00032328,3]
[367120582,1750662782718,-583.42,0.00032328,3]
[367120583,1750662782728,-483.48319036,0.00032328,3]
[367120584,1750662782738,-1382.11,0.00032328,3]
[367120585,1750662782749,-957.53,0.00032328,3]
[367120586,1750662782760,-1520.85,0.00032328,3]
[367120587,1750662782770,-852.4,0.00032328,3]
[367120588,1750662782780,-1514.64,0.00032328,3]
[367120589,1750662782791,-564.98,0.00032328,3]
[367120590,1750662782801,-1413.76,0.00032328,3]
[367120591,1750662782812,-621.88,0.00032328,3]
[367120592,1750662782822,-1486.85,0.00032328,3]
[367120593,1750662782832,-643.76,0.00032328,3]
[367120594,1750662782842,-605.57,0.00032328,3]
[367120595,1750662782853,-765.6,0.00032328,3]
[367120596,1750662782863,-635.87,0.00032328,3]
[367120597,1750662782873,-748.29,0.00032328,3]
[367120598,1750662782884,-490.0,0.00032328,3]
[367120599,1750662782894,-559.87,0.00032328,3]
[367120600,1750662782905,-521.1,0.00032328,3]
[367120601,1750662782916,-702.32,0.00032328,3]
[367120602,1750662782928,-1437.96,0.00032328,3]
[367120603,1750662782938,-933.29,0.00032328,3]
[367120604,1750662782949,-623.74,0.00032328,3]
[367120605,1750662782960,-1229.23,0.00032328,3]
[367120606,1750662782971,-1240.62,0.00032328,3]
[367120607,1750662782982,-490.0,0.00032328,3]
[367120608,1750662782993,-1044.91,0.00032328,3]
[367120609,1750662783003,-636.16,0.00032328,3]
[367120610,1750662783014,-490.92,0.00032328,3]
[367120611,1750662783024,-583.46,0.00032328,3]
[367120612,1750662783035,-1648.05,0.00032328,3]
[367120613,1750662783046,-745.48,0.00032328,3]
[367120614,1750662783057,-1819.02,0.00032328,3]
[367120615,1750662783067,-1025.74,0.00032328,3]
[367120616,1750662783078,-507.64,0.00032328,3]
[367120617,1750662783090,-1776.13,0.00032328,3]
[367120618,1750662783100,-803.35,0.00032328,3]
[367120619,1750662783112,-1305.95,0.00032328,3]
[367120620,1750662783122,-1801.52,0.00032328,3]
[367120621,1750662783133,-825.12,0.00032328,3]
[367120622,1750662783144,-553.17,0.00032328,3]
[367120623,1750662783155,-1449.74,0.00032328,3]
[367120624,1750662783165,-1184.6,0.00032328,3]
[367120625,1750662783176,-2077.31,0.00032328,3]
[367120626,1750662783187,-903.1,0.00032328,3]
[367120627,1750662783198,-1228.76,0.00032328,3]
[367120628,1750662783208,-840.82,0.00032328,3]
[367120629,1750662783219,-972.48,0.00032328,3]
[367120630,1750662783229,-490.0,0.00032328,3]
[367120631,1750662783240,-698.82,0.00032328,3]
[367120632,1750662783251,-1683.09,0.00032328,3]
[367120633,1750662783261,-614.18,0.00032328,3]
[367120634,1750662783274,-1017.63,0.00032328,3]